{"text_format":"1","workbook":"xlsx","n_sheets":2,"sheets":["Akt","Vzor_dat"],"not_rendered":{"charts":0,"images":2,"macros":0,"external_links":0,"defined_names":2,"comments":0,"pivot_tables":0},"unopened":[],"bounds":{"document_bytes":16777216,"sheet_cells":100000,"rows_first":2000,"rows_last":500,"rows_between":2000,"halvings":0,"cell_chars":16384,"cell_head_chars":4096},"cells_cut":0,"cells_raw":0,"read":"whole","date_system":"1900"}

{"sheet":"Akt","index":0,"n_rows":114,"n_cols":4,"rows_kept":114,"cut":false,"hidden":false,"merged":[[48,0,48,1],[5,0,5,1]]}
[null,null,"Datum od:","2020-01-11"]
[null,null,"Datum do:","2020-01-15"]
[null,null,"týden",0]
[]
[]
["J Í D E L N Í       L Í S T E K"]
["TEPLÁ STRAVA"]
["Číslo alergenu",{"$f":"CONCATENATE(IF((WEEKNUM(D1)+$D$3)<10,CONCATENATE(\"0\",(WEEKNUM(D1)+$D$3)),(WEEKNUM(D1)+$D$3)),\". týden   od \",TEXT($D$1,\"dd.mm.rrrr\"),\"          do    \",TEXT($D$2,\"dd.mm.rrrr\"))","v":"02. týden   od 11.01.2020          do    15.01.2020"}]
["PONDĚLÍ          1,2,3,6,7,9,14          ","Hovězí se zeleninou a kapáním"]
["1,3,7,9,10              1.jídlo:","Maďarský hovězí guláš (papriky,rajčata,feferonky), houskový knedlík"]
["1,3,7,14                 2.jídlo:","Katův šleh (v.plec,feferony,papriky,okurky,protlak), rýže"]
["1,3,14                    3.jídlo:","Špagety s kuřecím masem (3 druhy sýrů,černé olivy,bešamel,bazalka), strouhaný sýr"]
["1,3,14                    4.jídlo:","Smažený studentský řízek (GOTHAJ) 2 ks, brambory, tatarská omáčka"]
["1,3,14                    5.jídlo:","Široké nudle s mákem a cukrem, kakao"]
["1,3,14                   6.jídlo:","Přírodní kuřecí steak s brokolicí a zapečeným sýrem, šťouchaný brambor, zeleninová obloha"]
["1,3,7,9,10,14  SPECIÁL 8.jídlo:","Plněné bramborové knedlíky s uzeným masem, kysané zelí se slaninou a cibulkou"]
["ÚTERÝ              1,2,3,6,7,9,14       ","Cizrnová"]
["1,3,7,9,10              1.jídlo:","Pečené kuřecí stehno ve vlastní šťávě (grilovací koření), rýže"]
["1,3,7,14                 2.jídlo:","Smažené masové krokety (V+H mleté maso), brambory, tatarská omáčka"]
["1,3,14                    3.jídlo:","Vepřový plátek (v.pečeně) na kmíně, těstoviny"]
["1,3,14                    4.jídlo:","Bavorské vdolečky s džemem a tvarohem, káva 2v1"]
["1,3,14                    5.jídlo:","Velký zeleninový salát s kuřecím masem, paprikový dip, pečivo"]
["1,3,14                   6.jídlo:","Přírodní vepřový steak s anglickou slaninou a sýrem, brambory, salát z čínského zelí"]
["1,3,7,9,10,14  SPECIÁL 8.jídlo:","Pečená kachna, červené zelí, houskový/bramborový knedlík"]
["STŘEDA        1,2,3,6,7,9,14     ","Hovězí s rýží, hráškem a zeleninou"]
["1,3,7,9,10              1.jídlo:","Vepřová pečínka ve vlastní šťávě, kysané zelí, houskový knedlík"]
["1,3,7,14                 2.jídlo:","Koprová omáčka s vejcem (2ks), houskový knedlík"]
["1,3,14                    3.jídlo:","Zapečené šunkofleky s uzeným masem a sterilovanou okurkou, zelný salát "]
["1,3,14                    4.jídlo:","Jemný párek, hrachová kaše s cibulkou, salát z kysaného zelí"]
["1,3,14                    5.jídlo:","Svačinový ruský BORŠČ (H+V maso,zelenina,brambory,č.řepa,uzené,zelí bílé), chléb"]
["1,3,14                   6.jídlo:","Smažený královský špíz (kuřecí maso, sýr,uzenina), bramborová kaše, zeleninová obloha"]
["1,3,7,9,10,14  SPECIÁL 8.jídlo:","Pikantní kuřecí směs(rajčata,paprika,feferonky,chilli,protlak),bramboráčky(6ks)"]
["ČTVRTEK        1,2,3,6,7,9,14","Kotlíková s vejci, bramborem, zeleninou a uzeninou"]
["1,3,7                      1.jídlo:","Hovězí maso na česneku, špenát, bramborový knedlík"]
["1,3,7,14                 2.jídlo:","Rizoto z vepřového masa a zeleniny, strouhaný sýr, okurka"]
["1,3,14                    3.jídlo:","Přírodní vepřová játra  2ks, brambor, tatarská omáčka"]
["1,3,14                    4.jídlo:","Zbojnické maso se sýrem (v.plec,sl.paprika,lečo,feferonky,sýr eidam), rýže"]
["1,3,14                    5.jídlo:","Lahůdkový salát  (vejce,okurky,šunka,sýr,celer,majonéza), pečivo"]
["1,3,14                   6.jídlo:","Žebrácké vepřové maso (hořčice,sýr), brambory, mrkvový salát"]
["1,3,7,9,10,14  SPECIÁL 8.jídlo:","Smažené \"QUATTRO\"(vepřové,kuřecí,sýr cihla,hermelín),brambor,tatarská omáčka"]
["PÁTEK               1,2,3,6,7,9,14","Česneková s kroupami a zeleninou (sádlo)"]
["1,3,7,10                 1.jídlo:","Rajská hovězí pečeně (zeleninový základ,divoké koření), houskový knedlík"]
["1,3,7,14                 2.jídlo:","Vepřová čína s drůbežími játry (zelí bílé,pórek,sojová omáčka,žampióny,bílé víno), rýže"]
["1,3,14                    3.jídlo:","Domácí bramborák s uzeninou (3ks), salát z kysaného zelí"]
["1,3,14                    4.jídlo:","Grilované kuřecí stehno se sťávou, bramborová kaše, okurka"]
["1,3,14                    5.jídlo:","Vepřové výpečky s moravským zelím (cibulka,slanina), bramborové noky"]
["1,3,9,14                6.jídlo:","Smažený vepřový řízek, bramborová kaše, okurka"]
["1,3,7,9,10,14  SPECIÁL 8.jídlo:","Smažený kuřecí řízek XXL(250g), bramborový salát"]
[]
["CHLAZENÁ STRAVA",null,"Datum od:","2020-01-11"]
["Číslo alergenu",{"$f":"CONCATENATE(IF((WEEKNUM(D50)+$D$52)<10,CONCATENATE(\"0\",(WEEKNUM(D50)+$D$52)),(WEEKNUM(D50)+$D$52)),\". týden   od \",TEXT($D$50,\"dd.mm.rrrr\"),\"          do    \",TEXT($D$51,\"dd.mm.rrrr\"))","v":"02. týden   od 11.01.2020          do    17.01.2020"},"Datum do:","2020-01-17"]
["PONDĚLÍ                  ",null,"týden",0]
["1,3,7,9,10              1.jídlo:","Mleté masové koule v rajské omáčce, houskový knedlík"]
["1,3,7,14                 2.jídlo:","Kuřecí nudličky s nivou (smetana,bešamel,pórek), těstoviny"]
["1,3,14                    3.jídlo:","Vepřová krkovice ve vlastní šťávě, karotka v bešamelu, brambor "]
["1,3,14                    4.jídlo:","Kuřecí stehno se šťávou, dušená zelenina na másle, rýže"]
["1,3,14                    5.jídlo:","Lívanečky s džemem a skořicovým cukrem, jogurt"]
["1,3,14                   6.jídlo:","Smažené kuřecí medajlonky, bramborová kaše, okurka"]
["1,3,14  FITNESS  7.jídlo:","Dušené rybí filé na kmíně, šťouchaný brambor"]
["1,3,7,9,10,14  SPECIÁL 8.jídlo:","Smažený kuřecí řízek XXL(250g), bramborový salát"]
["ÚTERÝ              "]
["1,3,7,9,10              1.jídlo:","Maďarský hovězí guláš (papriky,rajčata,feferonky), houskový knedlík"]
["1,3,7,14                 2.jídlo:","Katův šleh (v.plec,feferony,papriky,okurky,protlak), rýže"]
["1,3,14                    3.jídlo:","Špagety s kuřecím masem (3 druhy sýrů,černé olivy,bešamel,bazalka), strouhaný sýr"]
["1,3,14                    4.jídlo:","Smažený studentský řízek (GOTHAJ) 2 ks, brambory, tatarská omáčka"]
["1,3,14                    5.jídlo:","Široké nudle s mákem a cukrem, pitíčko"]
["1,3,14                   6.jídlo:","Přírodní kuřecí steak s brokolicí a zapečeným sýrem, šťouchaný brambor"]
["1,3,14  FITNESS  7.jídlo:","Hovězí plátek na celeru s jablky, rýže"]
["1,3,7,9,10,14  SPECIÁL 8.jídlo:","Plněné bramborové knedlíky s uzeným masem, kysané zelí se slaninou a cibulkou"]
["STŘEDA             "]
["1,3,7,9,10              1.jídlo:","Pečené kuřecí stehno ve vlastní šťávě (grilovací koření), rýže"]
["1,3,7,14                 2.jídlo:","Smažené masové krokety (V+H mleté maso), brambory, tatarská omáčka"]
["1,3,14                    3.jídlo:","Vepřový plátek (v.pečeně) na kmíně, těstoviny"]
["1,3,14                    4.jídlo:","Bavorské vdolečky s džemem a tvarohem, káva 2v1"]
["1,3,14                    5.jídlo:","Velký zeleninový salát s kuřecím masem, paprikový dip, pečivo"]
["1,3,14                   6.jídlo:","Přírodní vepřový steak s anglickou slaninou a sýrem, hranolky"]
["1,3,14  FITNESS  7.jídlo:","Dušené krůtí maso, baby karotka s kukuřicí, rýže"]
["1,3,7,9,10,14  SPECIÁL 8.jídlo:","Pečená kachna, červené zelí, houskový/bramborový knedlík"]
["ČTVRTEK  "]
["1,3,7                      1.jídlo:","Vepřová pečínka ve vlastní šťávě, kysané zelí, houskový knedlík"]
["1,3,7,14                 2.jídlo:","Koprová omáčka s vejcem (2ks), houskový knedlík"]
["1,3,14                    3.jídlo:","Zapečené šunkofleky s uzeným masem a sterilovanou okurkou, zelný salát "]
["1,3,14                    4.jídlo:","Jemný párek, hrachová kaše s cibulkou, salát z kysaného zelí"]
["1,3,14                    5.jídlo:","Svačinový ruský BORŠČ (H+V maso,zelenina,brambory,č.řepa,uzené,zelí bílé), chléb"]
["1,3,14                   6.jídlo:","Smažený královský špíz (kuřecí maso, sýr,uzenina), bramborová kaše"]
["1,3,14  FITNESS  7.jídlo:","Přírodní  rybí filé s bazalkou a rajčaty, brambory"]
["1,3,7,9,10,14  SPECIÁL 8.jídlo:","Pikantní kuřecí směs(rajčata,paprika,feferonky,chilli,protlak),bramboráčky(6ks)"]
["PÁTEK          "]
["1,3,7,10                 1.jídlo:","Hovězí maso na česneku, špenát, bramborový knedlík"]
["1,3,7,14                 2.jídlo:","Rizoto z vepřového masa a zeleniny, strouhaný sýr, okurka"]
["1,3,14                    3.jídlo:","Přírodní vepřová játra  2ks, brambor, tatarská omáčka"]
["1,3,14                    4.jídlo:","Zbojnické maso se sýrem (v.plec,sl.paprika,lečo,feferonky,sýr eidam), rýže"]
["1,3,14                    5.jídlo:","Lahůdkový salát  (vejce,okurky,šunka,sýr,celer,majonéza), pečivo"]
["1,3,9,14                6.jídlo:","Žebrácké vepřové maso (hořčice,sýr), brambory"]
["1,3,14  FITNESS  7.jídlo:","Přírodní kuřecí medajlonky na olivovém oleji, bulgur s farmářskou zeleninou"]
["1,3,7,9,10,14  SPECIÁL 8.jídlo:","Smažené \"QUATTRO\"(vepřové,kuřecí,sýr cihla,hermelín),brambor,tatarská omáčka"]
["SOBOTA            "]
["1,3,7,10                 1.jídlo:","Hovězí maso na česneku, špenát, bramborový knedlík"]
["1,3,7,14                 2.jídlo:","Rizoto z vepřového masa a zeleniny, strouhaný sýr, okurka"]
["1,3,14                    3.jídlo:","Přírodní vepřová játra  2ks, brambor, tatarská omáčka"]
["1,3,14                    4.jídlo:","Zbojnické maso se sýrem (v.plec,sl.paprika,lečo,feferonky,sýr eidam), rýže"]
["1,3,14                    5.jídlo:","Lahůdkový salát  (vejce,okurky,šunka,sýr,celer,majonéza), pečivo"]
["1,3,9,14                6.jídlo:","Žebrácké vepřové maso (hořčice,sýr), brambory"]
["1,3,14  FITNESS  7.jídlo:","Přírodní kuřecí medajlonky na olivovém oleji, bulgur s farmářskou zeleninou"]
["1,3,7,9,10,14  SPECIÁL 8.jídlo:","Smažené \"QUATTRO\"(vepřové,kuřecí,sýr cihla,hermelín),brambor,tatarská omáčka"]
["NEDĚLE           "]
["1,3,7,10                 1.jídlo:","Hovězí maso na česneku, špenát, bramborový knedlík"]
["1,3,7,14                 2.jídlo:","Rizoto z vepřového masa a zeleniny, strouhaný sýr, okurka"]
["1,3,14                    3.jídlo:","Přírodní vepřová játra  2ks, brambor, tatarská omáčka"]
["1,3,14                    4.jídlo:","Zbojnické maso se sýrem (v.plec,sl.paprika,lečo,feferonky,sýr eidam), rýže"]
["1,3,14                    5.jídlo:","Lahůdkový salát  (vejce,okurky,šunka,sýr,celer,majonéza), pečivo"]
["1,3,9,14                6.jídlo:","Žebrácké vepřové maso (hořčice,sýr), brambory"]
["1,3,14  FITNESS  7.jídlo:","Přírodní kuřecí medajlonky na olivovém oleji, bulgur s farmářskou zeleninou"]
["1,3,7,9,10,14  SPECIÁL 8.jídlo:","Smažené \"QUATTRO\"(vepřové,kuřecí,sýr cihla,hermelín),brambor,tatarská omáčka"]

{"sheet":"Vzor_dat","index":1,"n_rows":102,"n_cols":6,"rows_kept":102,"cut":false,"hidden":false,"merged":[]}
["Datum","Druh_jídla","Alt_jídla","Název","Poznámka","Množstvý"]
[{"$f":"IF(A1=\"Datum\",Akt!D1,IF($C2=0,A1+1,A1))","v":"2020-01-11"},2,0,{"$f":"IF($C2=6,CONCATENATE(Akt!B9,\" - EXTRA\"),Akt!B9)","v":"Hovězí se zeleninou a kapáním"}]
[{"$f":"IF(A2=\"Datum\",Akt!D1,IF($C3=0,A2+1,A2))","v":"2020-01-11"},2,1,{"$f":"IF($C3=6,CONCATENATE(Akt!B10,\" - EXTRA\"),Akt!B10)","v":"Maďarský hovězí guláš (papriky,rajčata,feferonky), houskový knedlík"}]
[{"$f":"IF(A3=\"Datum\",Akt!D3,IF($C4=0,A3+1,A3))","v":"2020-01-11"},2,2,{"$f":"IF($C4=6,CONCATENATE(Akt!B11,\" - EXTRA\"),Akt!B11)","v":"Katův šleh (v.plec,feferony,papriky,okurky,protlak), rýže"}]
[{"$f":"IF(A4=\"Datum\",Akt!D4,IF($C5=0,A4+1,A4))","v":"2020-01-11"},2,3,{"$f":"IF($C5=6,CONCATENATE(Akt!B12,\" - EXTRA\"),Akt!B12)","v":"Špagety s kuřecím masem (3 druhy sýrů,černé olivy,bešamel,bazalka), strouhaný sýr"}]
[{"$f":"IF(A5=\"Datum\",Akt!D5,IF($C6=0,A5+1,A5))","v":"2020-01-11"},2,4,{"$f":"IF($C6=6,CONCATENATE(Akt!B13,\" - EXTRA\"),Akt!B13)","v":"Smažený studentský řízek (GOTHAJ) 2 ks, brambory, tatarská omáčka"}]
[{"$f":"IF(A6=\"Datum\",Akt!D6,IF($C7=0,A6+1,A6))","v":"2020-01-11"},2,5,{"$f":"IF($C7=6,CONCATENATE(Akt!B14,\" - EXTRA\"),Akt!B14)","v":"Široké nudle s mákem a cukrem, kakao"}]
[{"$f":"IF(A7=\"Datum\",Akt!D7,IF($C8=0,A7+1,A7))","v":"2020-01-11"},2,6,{"$f":"IF($C8=6,CONCATENATE(Akt!B15,\" - EXTRA\"),Akt!B15)","v":"Přírodní kuřecí steak s brokolicí a zapečeným sýrem, šťouchaný brambor, zeleninová obloha - EXTRA"}]
[{"$f":"IF(A7=\"Datum\",Akt!D7,IF($C8=0,A7+1,A7))","v":"2020-01-11"},2,7,"NÁHRADNÍ OBĚD"]
[{"$f":"IF(A8=\"Datum\",Akt!D8,IF($C10=0,A8+1,A8))","v":"2020-01-11"},2,8,{"$f":"IF($C10=6,CONCATENATE(Akt!B16,\" - EXTRA\"),Akt!B16)","v":"Plněné bramborové knedlíky s uzeným masem, kysané zelí se slaninou a cibulkou"}]
[{"$f":"IF(A10=\"Datum\",Akt!D9,IF($C11=0,A10+1,A10))","v":"2020-01-12"},2,0,{"$f":"IF($C11=6,CONCATENATE(Akt!B17,\" - EXTRA\"),Akt!B17)","v":"Cizrnová"}]
[{"$f":"IF(A11=\"Datum\",Akt!D10,IF($C12=0,A11+1,A11))","v":"2020-01-12"},2,1,{"$f":"IF($C12=6,CONCATENATE(Akt!B18,\" - EXTRA\"),Akt!B18)","v":"Pečené kuřecí stehno ve vlastní šťávě (grilovací koření), rýže"}]
[{"$f":"IF(A12=\"Datum\",Akt!D11,IF($C13=0,A12+1,A12))","v":"2020-01-12"},2,2,{"$f":"IF($C13=6,CONCATENATE(Akt!B19,\" - EXTRA\"),Akt!B19)","v":"Smažené masové krokety (V+H mleté maso), brambory, tatarská omáčka"}]
[{"$f":"IF(A13=\"Datum\",Akt!D12,IF($C14=0,A13+1,A13))","v":"2020-01-12"},2,3,{"$f":"IF($C14=6,CONCATENATE(Akt!B20,\" - EXTRA\"),Akt!B20)","v":"Vepřový plátek (v.pečeně) na kmíně, těstoviny"}]
[{"$f":"IF(A14=\"Datum\",Akt!D13,IF($C15=0,A14+1,A14))","v":"2020-01-12"},2,4,{"$f":"IF($C15=6,CONCATENATE(Akt!B21,\" - EXTRA\"),Akt!B21)","v":"Bavorské vdolečky s džemem a tvarohem, káva 2v1"}]
[{"$f":"IF(A15=\"Datum\",Akt!D14,IF($C16=0,A15+1,A15))","v":"2020-01-12"},2,5,{"$f":"IF($C16=6,CONCATENATE(Akt!B22,\" - EXTRA\"),Akt!B22)","v":"Velký zeleninový salát s kuřecím masem, paprikový dip, pečivo"}]
[{"$f":"IF(A16=\"Datum\",Akt!D15,IF($C17=0,A16+1,A16))","v":"2020-01-12"},2,6,{"$f":"IF($C17=6,CONCATENATE(Akt!B23,\" - EXTRA\"),Akt!B23)","v":"Přírodní vepřový steak s anglickou slaninou a sýrem, brambory, salát z čínského zelí - EXTRA"}]
[{"$f":"IF(A16=\"Datum\",Akt!D15,IF($C17=0,A16+1,A16))","v":"2020-01-12"},2,7,"NÁHRADNÍ OBĚD"]
[{"$f":"IF(A17=\"Datum\",Akt!D16,IF($C19=0,A17+1,A17))","v":"2020-01-12"},2,8,{"$f":"IF($C19=6,CONCATENATE(Akt!B24,\" - EXTRA\"),Akt!B24)","v":"Pečená kachna, červené zelí, houskový/bramborový knedlík"}]
[{"$f":"IF(A19=\"Datum\",Akt!D17,IF($C20=0,A19+1,A19))","v":"2020-01-13"},2,0,{"$f":"IF($C20=6,CONCATENATE(Akt!B25,\" - EXTRA\"),Akt!B25)","v":"Hovězí s rýží, hráškem a zeleninou"}]
[{"$f":"IF(A20=\"Datum\",Akt!D18,IF($C21=0,A20+1,A20))","v":"2020-01-13"},2,1,{"$f":"IF($C21=6,CONCATENATE(Akt!B26,\" - EXTRA\"),Akt!B26)","v":"Vepřová pečínka ve vlastní šťávě, kysané zelí, houskový knedlík"}]
[{"$f":"IF(A21=\"Datum\",Akt!D19,IF($C22=0,A21+1,A21))","v":"2020-01-13"},2,2,{"$f":"IF($C22=6,CONCATENATE(Akt!B27,\" - EXTRA\"),Akt!B27)","v":"Koprová omáčka s vejcem (2ks), houskový knedlík"}]
[{"$f":"IF(A22=\"Datum\",Akt!D20,IF($C23=0,A22+1,A22))","v":"2020-01-13"},2,3,{"$f":"IF($C23=6,CONCATENATE(Akt!B28,\" - EXTRA\"),Akt!B28)","v":"Zapečené šunkofleky s uzeným masem a sterilovanou okurkou, zelný salát "}]
[{"$f":"IF(A23=\"Datum\",Akt!D21,IF($C24=0,A23+1,A23))","v":"2020-01-13"},2,4,{"$f":"IF($C24=6,CONCATENATE(Akt!B29,\" - EXTRA\"),Akt!B29)","v":"Jemný párek, hrachová kaše s cibulkou, salát z kysaného zelí"}]
[{"$f":"IF(A24=\"Datum\",Akt!D22,IF($C25=0,A24+1,A24))","v":"2020-01-13"},2,5,{"$f":"IF($C25=6,CONCATENATE(Akt!B30,\" - EXTRA\"),Akt!B30)","v":"Svačinový ruský BORŠČ (H+V maso,zelenina,brambory,č.řepa,uzené,zelí bílé), chléb"}]
[{"$f":"IF(A25=\"Datum\",Akt!D23,IF($C26=0,A25+1,A25))","v":"2020-01-13"},2,6,{"$f":"IF($C26=6,CONCATENATE(Akt!B31,\" - EXTRA\"),Akt!B31)","v":"Smažený královský špíz (kuřecí maso, sýr,uzenina), bramborová kaše, zeleninová obloha - EXTRA"}]
[{"$f":"IF(A25=\"Datum\",Akt!D23,IF($C26=0,A25+1,A25))","v":"2020-01-13"},2,7,"NÁHRADNÍ OBĚD"]
[{"$f":"IF(A26=\"Datum\",Akt!D24,IF($C28=0,A26+1,A26))","v":"2020-01-13"},2,8,{"$f":"IF($C28=6,CONCATENATE(Akt!B32,\" - EXTRA\"),Akt!B32)","v":"Pikantní kuřecí směs(rajčata,paprika,feferonky,chilli,protlak),bramboráčky(6ks)"}]
[{"$f":"IF(A28=\"Datum\",Akt!D25,IF($C29=0,A28+1,A28))","v":"2020-01-14"},2,0,{"$f":"IF($C29=6,CONCATENATE(Akt!B33,\" - EXTRA\"),Akt!B33)","v":"Kotlíková s vejci, bramborem, zeleninou a uzeninou"}]
[{"$f":"IF(A29=\"Datum\",Akt!D26,IF($C30=0,A29+1,A29))","v":"2020-01-14"},2,1,{"$f":"IF($C30=6,CONCATENATE(Akt!B34,\" - EXTRA\"),Akt!B34)","v":"Hovězí maso na česneku, špenát, bramborový knedlík"}]
[{"$f":"IF(A30=\"Datum\",Akt!D27,IF($C31=0,A30+1,A30))","v":"2020-01-14"},2,2,{"$f":"IF($C31=6,CONCATENATE(Akt!B35,\" - EXTRA\"),Akt!B35)","v":"Rizoto z vepřového masa a zeleniny, strouhaný sýr, okurka"}]
[{"$f":"IF(A31=\"Datum\",Akt!D28,IF($C32=0,A31+1,A31))","v":"2020-01-14"},2,3,{"$f":"IF($C32=6,CONCATENATE(Akt!B36,\" - EXTRA\"),Akt!B36)","v":"Přírodní vepřová játra  2ks, brambor, tatarská omáčka"}]
[{"$f":"IF(A32=\"Datum\",Akt!D29,IF($C33=0,A32+1,A32))","v":"2020-01-14"},2,4,{"$f":"IF($C33=6,CONCATENATE(Akt!B37,\" - EXTRA\"),Akt!B37)","v":"Zbojnické maso se sýrem (v.plec,sl.paprika,lečo,feferonky,sýr eidam), rýže"}]
[{"$f":"IF(A33=\"Datum\",Akt!D30,IF($C34=0,A33+1,A33))","v":"2020-01-14"},2,5,{"$f":"IF($C34=6,CONCATENATE(Akt!B38,\" - EXTRA\"),Akt!B38)","v":"Lahůdkový salát  (vejce,okurky,šunka,sýr,celer,majonéza), pečivo"}]
[{"$f":"IF(A34=\"Datum\",Akt!D31,IF($C35=0,A34+1,A34))","v":"2020-01-14"},2,6,{"$f":"IF($C35=6,CONCATENATE(Akt!B39,\" - EXTRA\"),Akt!B39)","v":"Žebrácké vepřové maso (hořčice,sýr), brambory, mrkvový salát - EXTRA"}]
[{"$f":"IF(A34=\"Datum\",Akt!D31,IF($C35=0,A34+1,A34))","v":"2020-01-14"},2,7,"NÁHRADNÍ OBĚD"]
[{"$f":"IF(A35=\"Datum\",Akt!D32,IF($C37=0,A35+1,A35))","v":"2020-01-14"},2,8,{"$f":"IF($C37=6,CONCATENATE(Akt!B40,\" - EXTRA\"),Akt!B40)","v":"Smažené \"QUATTRO\"(vepřové,kuřecí,sýr cihla,hermelín),brambor,tatarská omáčka"}]
[{"$f":"IF(A37=\"Datum\",Akt!D33,IF($C38=0,A37+1,A37))","v":"2020-01-15"},2,0,{"$f":"IF($C38=6,CONCATENATE(Akt!B41,\" - EXTRA\"),Akt!B41)","v":"Česneková s kroupami a zeleninou (sádlo)"}]
[{"$f":"IF(A38=\"Datum\",Akt!D34,IF($C39=0,A38+1,A38))","v":"2020-01-15"},2,1,{"$f":"IF($C39=6,CONCATENATE(Akt!B42,\" - EXTRA\"),Akt!B42)","v":"Rajská hovězí pečeně (zeleninový základ,divoké koření), houskový knedlík"}]
[{"$f":"IF(A39=\"Datum\",Akt!D35,IF($C40=0,A39+1,A39))","v":"2020-01-15"},2,2,{"$f":"IF($C40=6,CONCATENATE(Akt!B43,\" - EXTRA\"),Akt!B43)","v":"Vepřová čína s drůbežími játry (zelí bílé,pórek,sojová omáčka,žampióny,bílé víno), rýže"}]
[{"$f":"IF(A40=\"Datum\",Akt!D36,IF($C41=0,A40+1,A40))","v":"2020-01-15"},2,3,{"$f":"IF($C41=6,CONCATENATE(Akt!B44,\" - EXTRA\"),Akt!B44)","v":"Domácí bramborák s uzeninou (3ks), salát z kysaného zelí"}]
[{"$f":"IF(A41=\"Datum\",Akt!D37,IF($C42=0,A41+1,A41))","v":"2020-01-15"},2,4,{"$f":"IF($C42=6,CONCATENATE(Akt!B45,\" - EXTRA\"),Akt!B45)","v":"Grilované kuřecí stehno se sťávou, bramborová kaše, okurka"}]
[{"$f":"IF(A42=\"Datum\",Akt!D38,IF($C43=0,A42+1,A42))","v":"2020-01-15"},2,5,{"$f":"IF($C43=6,CONCATENATE(Akt!B46,\" - EXTRA\"),Akt!B46)","v":"Vepřové výpečky s moravským zelím (cibulka,slanina), bramborové noky"}]
[{"$f":"IF(A43=\"Datum\",Akt!D39,IF($C44=0,A43+1,A43))","v":"2020-01-15"},2,6,{"$f":"IF($C44=6,CONCATENATE(Akt!B47,\" - EXTRA\"),Akt!B47)","v":"Smažený vepřový řízek, bramborová kaše, okurka - EXTRA"}]
[{"$f":"IF(A43=\"Datum\",Akt!D39,IF($C44=0,A43+1,A43))","v":"2020-01-15"},2,7,"NÁHRADNÍ OBĚD"]
[{"$f":"IF(A44=\"Datum\",Akt!D40,IF($C46=0,A44+1,A44))","v":"2020-01-15"},2,8,{"$f":"IF($C46=6,CONCATENATE(Akt!B48,\" - EXTRA\"),Akt!B48)","v":"Smažený kuřecí řízek XXL(250g), bramborový salát"}]
[{"$f":"IF(A1=\"Datum\",Akt!D50,IF($C47=1,A46+1,A46))","v":"2020-01-11"},3,1,{"$f":"IF($C47=1,Akt!B53)","v":"Mleté masové koule v rajské omáčce, houskový knedlík"}]
[{"$f":"IF(A2=\"Datum\",Akt!D51,IF($C48=1,A47+1,A47))","v":"2020-01-11"},3,2,{"$f":"IF($C48=2,Akt!B54)","v":"Kuřecí nudličky s nivou (smetana,bešamel,pórek), těstoviny"}]
[{"$f":"IF(A3=\"Datum\",Akt!D52,IF($C49=1,A48+1,A48))","v":"2020-01-11"},3,3,{"$f":"IF($C49=3,Akt!B55)","v":"Vepřová krkovice ve vlastní šťávě, karotka v bešamelu, brambor "}]
[{"$f":"IF(A4=\"Datum\",Akt!D53,IF($C50=1,A49+1,A49))","v":"2020-01-11"},3,4,{"$f":"IF($C50=4,Akt!B56)","v":"Kuřecí stehno se šťávou, dušená zelenina na másle, rýže"}]
[{"$f":"IF(A5=\"Datum\",Akt!D54,IF($C51=1,A50+1,A50))","v":"2020-01-11"},3,5,{"$f":"IF($C51=5,Akt!B57)","v":"Lívanečky s džemem a skořicovým cukrem, jogurt"}]
[{"$f":"IF(A6=\"Datum\",Akt!D55,IF($C52=1,A51+1,A51))","v":"2020-01-11"},3,6,{"$f":"IF($C52=6,Akt!B58)","v":"Smažené kuřecí medajlonky, bramborová kaše, okurka"}]
[{"$f":"IF(A7=\"Datum\",Akt!D56,IF($C53=1,A52+1,A52))","v":"2020-01-11"},3,7,{"$f":"IF($C53=7,Akt!B59)","v":"Dušené rybí filé na kmíně, šťouchaný brambor"}]
[{"$f":"IF(A8=\"Datum\",Akt!D57,IF($C54=1,A53+1,A53))","v":"2020-01-11"},3,8,{"$f":"IF($C53=7,Akt!B60)","v":"Smažený kuřecí řízek XXL(250g), bramborový salát"}]
[{"$f":"IF(A8=\"Datum\",Akt!D57,IF($C55=1,A53+1,A53))","v":"2020-01-12"},3,1,{"$f":"IF($C55=1,Akt!B62)","v":"Maďarský hovězí guláš (papriky,rajčata,feferonky), houskový knedlík"}]
[{"$f":"IF(A10=\"Datum\",Akt!D58,IF($C56=1,A55+1,A55))","v":"2020-01-12"},3,2,{"$f":"IF($C56=2,Akt!B63)","v":"Katův šleh (v.plec,feferony,papriky,okurky,protlak), rýže"}]
[{"$f":"IF(A11=\"Datum\",Akt!D59,IF($C57=1,A56+1,A56))","v":"2020-01-12"},3,3,{"$f":"IF($C57=3,Akt!B64)","v":"Špagety s kuřecím masem (3 druhy sýrů,černé olivy,bešamel,bazalka), strouhaný sýr"}]
[{"$f":"IF(A12=\"Datum\",Akt!D61,IF($C58=1,A57+1,A57))","v":"2020-01-12"},3,4,{"$f":"IF($C58=4,Akt!B65)","v":"Smažený studentský řízek (GOTHAJ) 2 ks, brambory, tatarská omáčka"}]
[{"$f":"IF(A13=\"Datum\",Akt!D62,IF($C59=1,A58+1,A58))","v":"2020-01-12"},3,5,{"$f":"IF($C59=5,Akt!B66)","v":"Široké nudle s mákem a cukrem, pitíčko"}]
[{"$f":"IF(A14=\"Datum\",Akt!D63,IF($C60=1,A59+1,A59))","v":"2020-01-12"},3,6,{"$f":"IF($C60=6,Akt!B67)","v":"Přírodní kuřecí steak s brokolicí a zapečeným sýrem, šťouchaný brambor"}]
[{"$f":"IF(A15=\"Datum\",Akt!D64,IF($C61=1,A60+1,A60))","v":"2020-01-12"},3,7,{"$f":"IF($C61=7,Akt!B68)","v":"Hovězí plátek na celeru s jablky, rýže"}]
[{"$f":"IF(A16=\"Datum\",Akt!D65,IF($C62=1,A61+1,A61))","v":"2020-01-12"},3,8,{"$f":"IF($C61=7,Akt!B69)","v":"Plněné bramborové knedlíky s uzeným masem, kysané zelí se slaninou a cibulkou"}]
[{"$f":"IF(A16=\"Datum\",Akt!D65,IF($C63=1,A61+1,A61))","v":"2020-01-13"},3,1,{"$f":"IF($C63=1,Akt!B71)","v":"Pečené kuřecí stehno ve vlastní šťávě (grilovací koření), rýže"}]
[{"$f":"IF(A17=\"Datum\",Akt!D66,IF($C64=1,A63+1,A63))","v":"2020-01-13"},3,2,{"$f":"IF($C64=2,Akt!B72)","v":"Smažené masové krokety (V+H mleté maso), brambory, tatarská omáčka"}]
[{"$f":"IF(A19=\"Datum\",Akt!D67,IF($C65=1,A64+1,A64))","v":"2020-01-13"},3,3,{"$f":"IF($C65=3,Akt!B73)","v":"Vepřový plátek (v.pečeně) na kmíně, těstoviny"}]
[{"$f":"IF(A20=\"Datum\",Akt!D68,IF($C66=1,A65+1,A65))","v":"2020-01-13"},3,4,{"$f":"IF($C66=4,Akt!B74)","v":"Bavorské vdolečky s džemem a tvarohem, káva 2v1"}]
[{"$f":"IF(A21=\"Datum\",Akt!D70,IF($C67=1,A66+1,A66))","v":"2020-01-13"},3,5,{"$f":"IF($C67=5,Akt!B75)","v":"Velký zeleninový salát s kuřecím masem, paprikový dip, pečivo"}]
[{"$f":"IF(A22=\"Datum\",Akt!D71,IF($C68=1,A67+1,A67))","v":"2020-01-13"},3,6,{"$f":"IF($C68=6,Akt!B76)","v":"Přírodní vepřový steak s anglickou slaninou a sýrem, hranolky"}]
[{"$f":"IF(A23=\"Datum\",Akt!D72,IF($C69=1,A68+1,A68))","v":"2020-01-13"},3,7,{"$f":"IF($C69=7,Akt!B77)","v":"Dušené krůtí maso, baby karotka s kukuřicí, rýže"}]
[{"$f":"IF(A24=\"Datum\",Akt!D73,IF($C70=1,A69+1,A69))","v":"2020-01-13"},3,8,{"$f":"IF($C69=7,Akt!B78)","v":"Pečená kachna, červené zelí, houskový/bramborový knedlík"}]
[{"$f":"IF(A24=\"Datum\",Akt!D73,IF($C71=1,A69+1,A69))","v":"2020-01-14"},3,1,{"$f":"IF($C71=1,Akt!B80)","v":"Vepřová pečínka ve vlastní šťávě, kysané zelí, houskový knedlík"}]
[{"$f":"IF(A25=\"Datum\",Akt!D74,IF($C72=1,A71+1,A71))","v":"2020-01-14"},3,2,{"$f":"IF($C72=2,Akt!B81)","v":"Koprová omáčka s vejcem (2ks), houskový knedlík"}]
[{"$f":"IF(A26=\"Datum\",Akt!D75,IF($C73=1,A72+1,A72))","v":"2020-01-14"},3,3,{"$f":"IF($C73=3,Akt!B82)","v":"Zapečené šunkofleky s uzeným masem a sterilovanou okurkou, zelný salát "}]
[{"$f":"IF(A28=\"Datum\",Akt!D76,IF($C74=1,A73+1,A73))","v":"2020-01-14"},3,4,{"$f":"IF($C74=4,Akt!B83)","v":"Jemný párek, hrachová kaše s cibulkou, salát z kysaného zelí"}]
[{"$f":"IF(A29=\"Datum\",Akt!D77,IF($C75=1,A74+1,A74))","v":"2020-01-14"},3,5,{"$f":"IF($C75=5,Akt!B84)","v":"Svačinový ruský BORŠČ (H+V maso,zelenina,brambory,č.řepa,uzené,zelí bílé), chléb"}]
[{"$f":"IF(A30=\"Datum\",Akt!D79,IF($C76=1,A75+1,A75))","v":"2020-01-14"},3,6,{"$f":"IF($C76=6,Akt!B85)","v":"Smažený královský špíz (kuřecí maso, sýr,uzenina), bramborová kaše"}]
[{"$f":"IF(A31=\"Datum\",Akt!D80,IF($C77=1,A76+1,A76))","v":"2020-01-14"},3,7,{"$f":"IF($C77=7,Akt!B86)","v":"Přírodní  rybí filé s bazalkou a rajčaty, brambory"}]
[{"$f":"IF(A32=\"Datum\",Akt!D81,IF($C78=1,A77+1,A77))","v":"2020-01-14"},3,8,{"$f":"IF($C77=7,Akt!B87)","v":"Pikantní kuřecí směs(rajčata,paprika,feferonky,chilli,protlak),bramboráčky(6ks)"}]
[{"$f":"IF(A32=\"Datum\",Akt!D81,IF($C79=1,A77+1,A77))","v":"2020-01-15"},3,1,{"$f":"IF($C79=1,Akt!B89)","v":"Hovězí maso na česneku, špenát, bramborový knedlík"}]
[{"$f":"IF(A33=\"Datum\",Akt!D82,IF($C80=1,A79+1,A79))","v":"2020-01-15"},3,2,{"$f":"IF($C80=2,Akt!B90)","v":"Rizoto z vepřového masa a zeleniny, strouhaný sýr, okurka"}]
[{"$f":"IF(A34=\"Datum\",Akt!D83,IF($C81=1,A80+1,A80))","v":"2020-01-15"},3,3,{"$f":"IF($C81=3,Akt!B91)","v":"Přírodní vepřová játra  2ks, brambor, tatarská omáčka"}]
[{"$f":"IF(A35=\"Datum\",Akt!D84,IF($C82=1,A81+1,A81))","v":"2020-01-15"},3,4,{"$f":"IF($C82=4,Akt!B92)","v":"Zbojnické maso se sýrem (v.plec,sl.paprika,lečo,feferonky,sýr eidam), rýže"}]
[{"$f":"IF(A37=\"Datum\",Akt!D85,IF($C83=1,A82+1,A82))","v":"2020-01-15"},3,5,{"$f":"IF($C83=5,Akt!B93)","v":"Lahůdkový salát  (vejce,okurky,šunka,sýr,celer,majonéza), pečivo"}]
[{"$f":"IF(A38=\"Datum\",Akt!D86,IF($C84=1,A83+1,A83))","v":"2020-01-15"},3,6,{"$f":"IF($C84=6,Akt!B94)","v":"Žebrácké vepřové maso (hořčice,sýr), brambory"}]
[{"$f":"IF(A39=\"Datum\",Akt!D88,IF($C85=1,A84+1,A84))","v":"2020-01-15"},3,7,{"$f":"IF($C85=7,Akt!B95)","v":"Přírodní kuřecí medajlonky na olivovém oleji, bulgur s farmářskou zeleninou"}]
[{"$f":"IF(A40=\"Datum\",Akt!D89,IF($C86=1,A85+1,A85))","v":"2020-01-15"},3,8,{"$f":"IF($C85=7,Akt!B96)","v":"Smažené \"QUATTRO\"(vepřové,kuřecí,sýr cihla,hermelín),brambor,tatarská omáčka"}]
[{"$f":"IF(A40=\"Datum\",Akt!D89,IF($C87=1,A85+1,A85))","v":"2020-01-16"},3,1,{"$f":"IF($C87=1,Akt!B98)","v":"Hovězí maso na česneku, špenát, bramborový knedlík"}]
[{"$f":"IF(A41=\"Datum\",Akt!D90,IF($C88=1,A87+1,A87))","v":"2020-01-16"},3,2,{"$f":"IF($C88=2,Akt!B99)","v":"Rizoto z vepřového masa a zeleniny, strouhaný sýr, okurka"}]
[{"$f":"IF(A42=\"Datum\",Akt!D91,IF($C89=1,A88+1,A88))","v":"2020-01-16"},3,3,{"$f":"IF($C89=3,Akt!B100)","v":"Přírodní vepřová játra  2ks, brambor, tatarská omáčka"}]
[{"$f":"IF(A43=\"Datum\",Akt!D92,IF($C90=1,A89+1,A89))","v":"2020-01-16"},3,4,{"$f":"IF($C90=4,Akt!B101)","v":"Zbojnické maso se sýrem (v.plec,sl.paprika,lečo,feferonky,sýr eidam), rýže"}]
[{"$f":"IF(A44=\"Datum\",Akt!D93,IF($C91=1,A90+1,A90))","v":"2020-01-16"},3,5,{"$f":"IF($C91=5,Akt!B102)","v":"Lahůdkový salát  (vejce,okurky,šunka,sýr,celer,majonéza), pečivo"}]
[{"$f":"IF(A46=\"Datum\",Akt!D94,IF($C92=1,A91+1,A91))","v":"2020-01-16"},3,6,{"$f":"IF($C92=6,Akt!B103)","v":"Žebrácké vepřové maso (hořčice,sýr), brambory"}]
[{"$f":"IF(A47=\"Datum\",Akt!D95,IF($C93=1,A92+1,A92))","v":"2020-01-16"},3,7,{"$f":"IF($C93=7,Akt!B104)","v":"Přírodní kuřecí medajlonky na olivovém oleji, bulgur s farmářskou zeleninou"}]
[{"$f":"IF(A48=\"Datum\",Akt!D96,IF($C94=1,A93+1,A93))","v":"2020-01-16"},3,8,{"$f":"IF($C93=7,Akt!B105)","v":"Smažené \"QUATTRO\"(vepřové,kuřecí,sýr cihla,hermelín),brambor,tatarská omáčka"}]
[{"$f":"IF(A48=\"Datum\",Akt!D97,IF($C95=1,A93+1,A93))","v":"2020-01-17"},3,1,{"$f":"IF($C95=1,Akt!B107)","v":"Hovězí maso na česneku, špenát, bramborový knedlík"}]
[{"$f":"IF(A49=\"Datum\",Akt!D98,IF($C96=1,A95+1,A95))","v":"2020-01-17"},3,2,{"$f":"IF($C96=2,Akt!B108)","v":"Rizoto z vepřového masa a zeleniny, strouhaný sýr, okurka"}]
[{"$f":"IF(A50=\"Datum\",Akt!D99,IF($C97=1,A96+1,A96))","v":"2020-01-17"},3,3,{"$f":"IF($C97=3,Akt!B109)","v":"Přírodní vepřová játra  2ks, brambor, tatarská omáčka"}]
[{"$f":"IF(A51=\"Datum\",Akt!D100,IF($C98=1,A97+1,A97))","v":"2020-01-17"},3,4,{"$f":"IF($C98=4,Akt!B110)","v":"Zbojnické maso se sýrem (v.plec,sl.paprika,lečo,feferonky,sýr eidam), rýže"}]
[{"$f":"IF(A52=\"Datum\",Akt!D101,IF($C99=1,A98+1,A98))","v":"2020-01-17"},3,5,{"$f":"IF($C99=5,Akt!B111)","v":"Lahůdkový salát  (vejce,okurky,šunka,sýr,celer,majonéza), pečivo"}]
[{"$f":"IF(A53=\"Datum\",Akt!D102,IF($C100=1,A99+1,A99))","v":"2020-01-17"},3,6,{"$f":"IF($C100=6,Akt!B112)","v":"Žebrácké vepřové maso (hořčice,sýr), brambory"}]
[{"$f":"IF(A55=\"Datum\",Akt!D103,IF($C101=1,A100+1,A100))","v":"2020-01-17"},3,7,{"$f":"IF($C101=7,Akt!B113)","v":"Přírodní kuřecí medajlonky na olivovém oleji, bulgur s farmářskou zeleninou"}]
[{"$f":"IF(A56=\"Datum\",Akt!D104,IF($C102=1,A101+1,A101))","v":"2020-01-17"},3,8,{"$f":"IF($C101=7,Akt!B114)","v":"Smažené \"QUATTRO\"(vepřové,kuřecí,sýr cihla,hermelín),brambor,tatarská omáčka"}]